Workbook

Sheet Início
B1: SOBRE ESTE MODELO
B2: Use esta pasta de trabalho de orçamento de evento para acompanhar as despesas incorridas e receita agregada de um evento.
B3: Preencha o nome do evento e insira informações em tabelas na planilha de despesas e receita planilha.
B4: O total de receitas e despesas é calculado automaticamente.
B5: O resumo e o gráfico de Lucro e Perda são automaticamente atualizados na planilha de resumo de lucros e perdas.
B6: Observação:
B7: há instruções adicionais na coluna A de cada planilha. Este texto está oculto de propósito. Para removê-lo, selecione a coluna A e selecione Excluir. Para reexibir o texto, selecione a coluna A e altere a cor da fonte.
B8: Saiba mais sobre as tabelas pressionando Shift e F10 dentro de uma tabela, selecione a opção TABELA e depois TEXTO ALTERNATIVO.

Sheet Despesas
A1: Insira as despesas real e valor estimado para cada categoria respectivas tabelas nesta planilha, e o nome do evento na célula D1 para personalizar o título desta e outras planilhas. O título desta planilha está na célula H1. Instruções úteis sobre como usar esta planilha estão nas células desta coluna. A próxima instrução está na célula A3. | B1: Orçamento de evento para o nome do evento | H1: DESPESAS
A3: Rótulo de despesas totais está na célula à direita, o rótulo estimado na célula G3 e real em H3. | B3: DESPESAS TOTAIS | G3: Valor estimado | H3: Real
A4: As despesas previstas total na célula G4 e despesas reais Total em H4 são calculadas automaticamente. A próxima instrução está na célula A6. | G4: =SUM(C11,C19,C25,C32,G11,G19,G24) -> R$ 882.00 | H4: =SUM(D11,D19,D25,D32,H11,H19,H24) -> R$ 333.00
A6: Insira despesas do site na tabela iniciando na célula à direita despesas de bebidas na tabela iniciando na célula F6. A próxima instrução está na célula A13. | B6: Site | C6: Valor estimado | D6: Real | F6: Bebidas | G6: Valor estimado | H6: Real
B7: Taxas da sala e espaço | C7: R$ 500.00 | F7: Alimentação
B8: Equipe de site | F8: Bebidas | G8: R$ 20.00
B9: Equipamentos | F9: Roupa de mesa | H9: R$ 20.00
B10: Mesas e cadeiras | F10: Funcionários e gratuidades
B11: Total | C11: =SUBTOTAL(109,DespesasSite[Valor estimado]) -> R$ 500.00 | D11: =SUBTOTAL(109,DespesasSite[Real]) -> R$ 0.00 | F11: Total | G11: =SUBTOTAL(109,DespesasBebidas[Valor estimado]) -> R$ 20.00 | H11: =SUBTOTAL(109,DespesasBebidas[Real]) -> R$ 20.00
A13: Inserir despesas de decoração na tabela iniciando na célula à direita e despesas de programa na tabela iniciando na célula F13. A próxima instrução está na célula A21. | B13: Decorações | C13: Valor estimado | D13: Real | F13: Programa | G13: Valor estimado | H13: Real
B14: Flores | C14: R$ 200.00 | D14: R$ 300.00 | F14: Executores
B15: Velas | F15: Falantes | G15: R$ 30.00
B16: Iluminação | F16: Viagem
B17: Balões | F17: Hotel
B18: Fontes de papel | F18: Outros
B19: Total | C19: =SUBTOTAL(109,DespesasDecorações[Valor estimado]) -> R$ 200.00 | D19: =SUBTOTAL(109,DespesasDecorações[Real]) -> R$ 300.00 | F19: Total | G19: =SUBTOTAL(109,DespesasPrograma[Valor estimado]) -> R$ 30.00 | H19: =SUBTOTAL(109,DespesasPrograma[Real]) -> R$ 0.00
A21: Insira as despesas de publicidade na tabela iniciando na célula à direita e despesas de prêmios na tabela iniciando na célula F21. A próxima instrução está na célula A27. | B21: Publicidade | C21: Valor estimado | D21: Real | F21: Prêmios | G21: Valor estimado | H21: Real
B22: Trabalho com elementos gráficos | F22: Faixa de opções/as placas/troféus
B23: Impressão/fotocópia | C23: R$ 20.00 | F23: Presentes | G23: R$ 100.00
B24: Postagem | F24: Total | G24: =SUBTOTAL(109,DespesasPrêmios[Valor estimado]) -> R$ 100.00 | H24: =SUBTOTAL(109,DespesasPrêmios[Real]) -> R$ 0.00
B25: Total | C25: =SUBTOTAL(109,DespesasPublicidade[Valor estimado]) -> R$ 20.00 | D25: =SUBTOTAL(109,DespesasPublicidade[Real]) -> R$ 0.00
A27: Insira as despesas diversas na tabela iniciando na célula à direita. | B27: Diversos | C27: Valor estimado | D27: Real
B28: Telefone | D28: R$ 13.00
B29: Transporte | C29: R$ 12.00
B30: Fontes de papel de carta
B31: Serviços de fax
B32: Total | C32: =SUBTOTAL(109,DepesasDiversos[Valor estimado]) -> R$ 12.00 | D32: =SUBTOTAL(109,DepesasDiversos[Real]) -> R$ 13.00

Sheet Receita
A1: Insira os custos Reais e Estimados para cada categoria nas respectivas tabelas desta planilha. O título desta planilha é automaticamente atualizado nas células à direita. O título está na célula G1. Instruções úteis sobre como usar esta planilha estão nas células desta coluna. A próxima instrução está na célula A3. | B1: =Despesas!B1 -> Orçamento de evento para o nome do evento | G1: RECEITA
A3: O rótulo receita totais na célula à direita, rótulo valor estimado na célula F3 e real em G3. | B3: RECEITA TOTAIS | F3: Valor estimado | G3: Real
A4: O total de receitas estimado é calculado automaticamente na célula F4 e Total de receitas real em G4. | F4: =SUM(Admissões[[#Totals],[Receita estimada]],AnúnciosNoPrograma[[#Totals],[Receita estimada]],ApresentadoresOuFornecedores[[#Totals],[Receita estimada]],VendasDeItens[[#Totals],[Receita estimada]]) -> R$ 1,936.00 | G4: =SUM(Admissões[[#Totals],[Receita real]],AnúnciosNoPrograma[[#Totals],[Receita real]],ApresentadoresOuFornecedores[[#Totals],[Receita real]],VendasDeItens[[#Totals],[Receita real]]) -> R$ 1,831.00
A5: O rótulo Admissões está na célula à direita. | B5: ADMISSÃO
A6: Insira o número estimado e real de admissão com taxas de pedido na tabela iniciando na célula à direita. A receita estimada e real de admissão é calculada automaticamente. A próxima instrução está na célula A11. | B6: Nº Estimado | C6: Nº real. | D6: Tipo | E6: Preço | F6: Receita estimada | G6: Receita real
B7: 300 | C7: 278 | D7: Adultos @ | E7: R$ 5.00 | F7: =B7*E7 -> R$ 1,500.00 | G7: =C7*E7 -> R$ 1,390.00
B8: 197 | C8: 195 | D8: Filhos @ | E8: R$ 2.00 | F8: =B8*E8 -> R$ 394.00 | G8: =C8*E8 -> R$ 390.00
B9: 42 | C9: 51 | D9: Outros @ | E9: R$ 1.00 | F9: =B9*E9 -> R$ 42.00 | G9: =C9*E9 -> R$ 51.00
B10: Total | F10: =SUBTOTAL(109,Admissões[Receita estimada]) -> R$ 1,936.00 | G10: =SUBTOTAL(109,Admissões[Receita real]) -> R$ 1,831.00
A11: Anúncios na etiqueta do programa está na célula à direita. | B11: ANÚNCIOS NO PROGRAMA
A12: Insira o número real e estimado de anúncios no programa e taxas do anúncio na tabela iniciando na célula à direita. A receita estimada e real de anúncios é calculada automaticamente. A próxima instrução está na célula A17. | B12: Nº Estimado | C12: Nº real. | D12: Tipo | E12: Preço | F12: Receita estimada | G12: Receita real
B13: 12 | D13: Folha de rosto @ | F13: =B13*E13 -> R$ 0.00 | G13: =C13*E13 -> R$ 0.00
C14: 158 | D14: Metade das páginas @ | F14: =B14*E14 -> R$ 0.00 | G14: =C14*E14 -> R$ 0.00
B15: 4 | D15: Um quarto das páginas @ | F15: =B15*E15 -> R$ 0.00 | G15: =C15*E15 -> R$ 0.00
B16: Total | F16: =SUBTOTAL(109,AnúnciosNoPrograma[Receita estimada]) -> R$ 0.00 | G16: =SUBTOTAL(109,AnúnciosNoPrograma[Receita real]) -> R$ 0.00
A17: A etiqueta de apresentadores ou fornecedores está na célula à direita. | B17: APRESENTADORES/FORNECEDORES
A18: Insira o número real e estimado dos apresentadores e fornecedores e taxas booth na tabela iniciando na célula à direita. A receita estimada e real são calculadas automaticamente. A próxima instrução está na célula A23. | B18: Nº Estimado | C18: Nº real. | D18: Tipo | E18: Preço | F18: Receita estimada | G18: Receita real
B19: 23 | D19: Grande estande @ | F19: =B19*E19 -> R$ 0.00 | G19: =C19*E19 -> R$ 0.00
B20: 354 | D20: Estande MED. @ | F20: =B20*E20 -> R$ 0.00 | G20: =C20*E20 -> R$ 0.00
B21: 56 | D21: Pequeno estande @ | F21: =B21*E21 -> R$ 0.00 | G21: =C21*E21 -> R$ 0.00
B22: Total | F22: =SUBTOTAL(109,ApresentadoresOuFornecedores[Receita estimada]) -> R$ 0.00 | G22: =SUBTOTAL(109,ApresentadoresOuFornecedores[Receita real]) -> R$ 0.00
A23: Venda de rótulo de itens está na célula à direita. | B23: VENDAS DE ITENS
A24: Insira o número real e estimado de itens vendidos e taxas item na tabela iniciando na célula à direita. A receita estimada e real são calculadas automaticamente. | B24: Nº Estimado | C24: Nº real. | D24: Tipo | E24: Preço | F24: Receita estimada | G24: Receita real
D25: Itens @ | F25: =B25*E25 -> R$ 0.00 | G25: =C25*E25 -> R$ 0.00
B26: 123 | D26: Itens @ | F26: =B26*E26 -> R$ 0.00 | G26: =C26*E26 -> R$ 0.00
D27: Itens @ | F27: =B27*E27 -> R$ 0.00 | G27: =C27*E27 -> R$ 0.00
B28: 13 | D28: Itens @ | F28: =B28*E28 -> R$ 0.00 | G28: =C28*E28 -> R$ 0.00
B29: Total | F29: =SUBTOTAL(109,VendasDeItens[Receita estimada]) -> R$ 0.00 | G29: =SUBTOTAL(109,VendasDeItens[Receita real]) -> R$ 0.00

Sheet Resumo de lucros e perdas
A1: O gráfico resumo de Lucro e Perda mostrando a receita total e despesas é automaticamente atualizado nessa planilha. O título desta planilha é automaticamente atualizado nas células à direita. Subtítulo está na célula G1 e G2. Instruções úteis sobre como usar esta planilha estão nas células desta coluna. A próxima instrução está na célula A3. | B1: =Despesas!B1 -> Orçamento de evento para o nome do evento | G1: LUCRO
G2: Resumo de perda
A3: O gráfico de barras comparando a receita estimada e receitas e despesas reais está na célula E3. | E3: Gráfico de barras mostrando receitas e despesas estimadas e a comparação de receita e despesa real nessa célula.
A4: A Tabela de resumo do orçamento que começa na célula à direita é atualizada automaticamente. A próxima instrução está na célula A8. | B4: Total | C4: Valor estimado | D4: Real
B5: Total de Renda | C5: =Receita!F4 -> R$ 1,936.00 | D5: =Receita!G4 -> R$ 1,831.00
B6: Despesas totais | C6: =Despesas!G4 -> R$ 882.00 | D6: =Despesas!H4 -> R$ 333.00
A8: O lucro total ou perda estimada é calculado automaticamente na célula C8 e o lucro Total ou perda real na célula D8. | B8: O lucro total (ou perda) | C8: =C5-C6 -> R$ 1,054.00 | D8: =D5-D6 -> R$ 1,498.00
